[Event "45th FIDE Womens Olympiad 2024"]
[Site "Budapest"]
[Date "2024.09.16"]
[Round "6.21"]
[White "Pham, Le Thao Nguyen"]
[Black "Mammadzada, Gunay"]
[Result "1-0"]
[ECO "D02"]
[WhiteElo "2380"]
[BlackElo "2433"]
[Annotator "TA"]
[PlyCount "123"]
[EventDate "2024.09.05"]
[EventType "team-tourn"]
[EventCountry "HUN"]
[SourceTitle "playchess.com"]
[Source "ChessBase"]
[SourceQuality "1"]
[WhiteTeam "Vietnam"]
[BlackTeam "Azerbaijan"]
[WhiteTeamCountry "VIE"]
[BlackTeamCountry "AZE"]
[TimeControl "40/5400+30:1800+30"]

{[%evp 35,123,-22,-4,-103,-43,-112,-72,-100,-93,-85,-1,-5,0,0,0,0,0,0,51,67,75,65,50,28,35,29,31,0,0,0,0,0,0,-8,-8,-13,-7,-17,0,-108,-116,-112,-103,-102,-64,-62,-64,-61,-68,-102,-68,-107,-93,-104,-89,-105,-89,-112,-89,-154,-80,-88,-80,-80,-4,-4,-1,-121,0,0,0,0,0,0,0,0,0,0,0,0,0,0,0,0,0,0,0,0,29998,29999]} 1. d4 {[%emt 0:00:06]} Nf6 {[%emt 0:00:06]} 2. Nf3 {[%emt 0:00:17]} d5 {[%emt 0:00:04]} 3. Bf4 {[%emt 0:00:32]} e6 {[%emt 0:00:21]} 4. e3 {[%emt 0:00:23]} c5 {[%emt 0:00:06]} 5. c3 {[%emt 0:00:23]} Bd6 {[%emt 0:00:14]} 6. Bb5+ {[%emt 0:03:40] D02: 1 d4 d5 2 Nf3 sidelines, including 2...Nf6 3 g3 and 2...Nf6 3 Bf4.} Nc6 {[%emt 0:00:06]} 7. Bg3 {[%emt 0:00:33]} O-O {[%emt 0:01:22]} 8. Nbd2 {[%emt 0:03:32]} a6 {[%emt 0:13:52]} 9. Bd3 {[%emt 0:02:47]} h6 $146 {[%emt 0:00:18]} ({Predecessor:} 9... b6 10. e4 Be7 11. dxc5 bxc5 12. O-O Nh5 13. Ne5 Nxe5 14. Bxe5 g6 15. Re1 Bf6 16. exd5 exd5 {1-0 Grischuk,A (2774)-Karjakin,S (2762) Wch Blitz 9th 2015 (18)}) 10. Qe2 {[%emt 0:06:15]} Qe7 {[%emt 0:23:21]} 11. Ne5 {[%emt 0:05:32]} Bxe5 {[%emt 0:09:45]} 12. dxe5 {[%emt 0:05:13]} Nd7 {[%emt 0:00:07]} 13. f4 {[%emt 0:08:47]} f6 {[%emt 0:06:57]} 14. Nf3 {[%emt 0:13:07]} b5 {[%emt 0:06:34]} 15. Nh4 {[%emt 0:06:31]} Qe8 {[%emt 0:04:46]} 16. Ng6 {[%emt 0:04:21]} Rf7 {[%emt 0:00:08]} 17. O-O {[%emt 0:01:05]} Bb7 {[%emt 0:06:19]} 18. Rf2 {[%emt 0:08:23]} f5 {[%emt 0:01:53]} 19. Bh4 {[%emt 0:03:27]} (19. h4 $11) 19... d4 {[%emt 0:07:10]} (19... c4 $17 20. Bc2 Kh7) 20. cxd4 {[%emt 0:02:55]} (20. exd4 $15 cxd4 21. cxd4) 20... Nb4 {[%emt 0:01:15]} 21. Bb1 {[%emt 0:01:54]} cxd4 $1 {[%emt 0:00:16]} 22. e4 {[%emt 0:00:44] [#]} d3 {[%emt 0:01:42]} ({Black should play} 22... fxe4 $1 $17 {...Nc5 would now be deadly.} 23. Bxe4 Nc5) 23. Qd2 {[%emt 0:03:16]} (23. Bxd3 $2 Nc5 24. Bb1 Bxe4 $19) 23... Nc2 {[%emt 0:00:14]} 24. Bxc2 {[%emt 0:00:35]} dxc2 {[%emt 0:00:05]} 25. exf5 {[%emt 0:02:45]} Be4 {[%emt 0:03:26]} 26. Qd6 {[%emt 0:08:11]} Bxf5 {[%emt 0:03:21]} (26... Nf8 $1 $11 27. Nxf8 (27. Ne7+ Rxe7 28. Qxe7 exf5 $15) 27... exf5) 27. Ne7+ $14 {[%emt 0:00:08]} Kh8 {[%emt 0:02:05]} 28. Nxf5 {[%emt 0:00:27]} Rxf5 {[%emt 0:00:04]} 29. Rxc2 {[%emt 0:01:01]} (29. Rc1 {looks sharper.} Nf8 30. Qd2 Ng6 31. g4) 29... Rxf4 {[%emt 0:00:04]} 30. Bg3 {[%emt 0:00:20]} Rf5 {[%emt 0:03:10]} 31. Rc6 {[%emt 0:02:25]} Nxe5 {[%emt 0:02:07]} 32. Rxa6 {[%emt 0:03:33]} ({Reject} 32. Bxe5 Rxe5 33. Qxe5 Qxc6 $15) 32... Rxa6 {[%emt 0:01:20]} 33. Qxa6 {[%emt 0:00:03]} Nd3 {[%emt 0:01:54]} 34. Qa3 {[%emt 0:02:38]} Qd8 {[%emt 0:00:49]} 35. h3 {[%emt 0:01:20]} Qd4+ {[%emt 0:01:10]} 36. Kh2 {[%emt 0:00:03]} Qxb2 {[%emt 0:00:19]} 37. Qa8+ {[%emt 0:00:22]} (37. Qxb2 $11 Nxb2 38. Re1) 37... Kh7 $17 {[%emt 0:00:01]} 38. Rg1 {[%emt 0:00:29]} Qe2 {[%emt 0:00:38]} 39. a3 {[%emt 0:00:59]} Rf1 {[%emt 0:01:56]} 40. Rxf1 {[%emt 0:00:27]} Qxf1 {[%emt 0:00:02]} 41. Qc6 {[%emt 0:30:54]} Qf5 {[%emt 0:30:08]} 42. Qd7 {[%emt 0:00:00]} Qd5 {[%emt 0:00:00]} 43. Qf7 {[%emt 0:00:00]} Nb2 {[%emt 0:00:00]} 44. Qf2 {[%emt 0:00:00]} Nc4 {[%emt 0:00:00]} 45. Qc2+ {[%emt 0:00:00]} Qf5 {[%emt 0:00:00]} 46. Qc3 {[%emt 0:00:00]} Qe4 {[%emt 0:00:00]} 47. Kh1 {[%emt 0:00:00]} (47. Qb4 $142) 47... h5 {[%emt 0:00:00]} (47... Qe3 $142 48. Qxe3 Nxe3) 48. Bf2 $17 {[%emt 0:00:00]} Qe2 {[%emt 0:00:00]} 49. Bc5 {[%emt 0:00:00]} e5 {[%emt 0:00:00]} (49... Nb2 $17) 50. Qb3 $11 {[%emt 0:00:00]} Nd2 {[%emt 0:00:00]} 51. Qc2+ {[%emt 0:00:00] [#]} (51. Qd5 $11 {keeps the balance.}) 51... e4 {[%emt 0:00:00]} (51... Ne4 $1 $17 52. Qc1 h4) 52. Bg1 $11 {[%emt 0:00:00]} Nf1 {[%emt 0:00:24]} 53. Qc7 {[%emt 0:00:00]} (53. Qxe2 $2 {is the wrong capture.} Ng3+ 54. Kh2 Nxe2 $19) 53... Ne3 {[%emt 0:01:55]} 54. Bxe3 {[%emt 0:00:00]} Qxe3 {[%emt 0:00:12]} 55. Qe5 {[%emt 0:00:00]} Qe2 {[%emt 0:01:33]} 56. Kh2 {[%emt 0:00:00]} e3 {[%emt 0:01:20]} 57. Qe4+ {[%emt 0:00:00]} Kh6 {[%emt 0:00:30]} 58. Qe6+ {[%emt 0:01:42]} g6 {[%emt 0:00:59]} 59. Qf6 {[%emt 0:00:26]} Qf2 {[%emt 0:00:44]} 60. Qh8+ {[%emt 0:00:05]} Kg5 {[%emt 0:00:03]} 61. Qe5+ {[%emt 0:00:05]} Qf5 $2 {[%emt 0:00:57][%mdl 8192]} (61... Kh6 $11) 62. h4+ $1 {[%emt 0:00:08]} 1-0

[Event "45th FIDE Womens Olympiad 2024"]
[Site "Budapest"]
[Date "2024.09.16"]
[Round "6.21"]
[White "Ahmed, Najla"]
[Black "Magno, Angelica"]
[Result "1/2-1/2"]
[ECO "E91"]
[WhiteElo "1539"]
[BlackElo "1544"]
[PlyCount "81"]
[EventDate "2024.09.05"]
[EventType "team-tourn"]
[EventCountry "HUN"]
[WhiteTeam "Bahrain"]
[BlackTeam "Palau"]
[WhiteTeamCountry "BHN"]
[BlackTeamCountry "PAL"]
[TimeControl "40/5400+30:1800+30"]

1. d4 d6 2. c4 Nf6 3. Nc3 g6 4. e4 Bg7 5. Nf3 O-O 6. Be2 Nbd7 7. O-O c5 8. h3 a6 9. Be3 b6 10. Qd2 Bb7 11. Bd3 Qc7 12. Bh6 cxd4 13. Nxd4 Nc5 14. Bxg7 Kxg7 15. Rfe1 Nxd3 16. Qxd3 e5 17. Nf3 Rad8 18. Nd5 Nxd5 19. cxd5 f6 20. Rac1 Qe7 21. Rc3 b5 22. Qe3 Ra8 23. Qb6 Rac8 24. Rec1 Rxc3 25. Rxc3 Rc8 26. Rxc8 Bxc8 27. Nd2 f5 28. f3 Kh6 29. Qe3+ f4 30. Qb6 Qg5 31. Kf1 Qe7 32. a4 Qd7 33. axb5 axb5 34. Nb3 b4 35. Na5 Qa4 36. b3 Qa1+ 37. Kf2 Qa2+ 38. Kf1 Qa1+ 39. Kf2 Qa2+ 40. Kf1 Qa1+ 41. Kf2 1/2-1/2

[Event "45th FIDE Womens Olympiad 2024"]
[Site "Budapest"]
[Date "2024.09.16"]
[Round "6.22"]
[White "Fataliyeva, Ulviyya"]
[Black "Vo, Thi Kim Phung"]
[Result "1-0"]
[ECO "E08"]
[WhiteElo "2378"]
[BlackElo "2320"]
[Annotator "RC"]
[PlyCount "63"]
[EventDate "2024.09.05"]
[EventType "team-tourn"]
[EventCountry "HUN"]
[SourceTitle "playchess.com"]
[Source "ChessBase"]
[SourceQuality "1"]
[WhiteTeam "Azerbaijan"]
[BlackTeam "Vietnam"]
[WhiteTeamCountry "AZE"]
[BlackTeamCountry "VIE"]
[TimeControl "40/5400+30:1800+30"]

1. d4 {[%emt 0:00:08]} d5 {[%emt 0:00:13]} 2. c4 {[%emt 0:00:06]} e6 {[%emt 0:00:08]} 3. Nf3 {[%emt 0:00:07]} Nf6 {[%emt 0:00:06]} 4. g3 {[%emt 0:00:06]} Be7 {[%emt 0:00:10]} 5. Bg2 {[%emt 0:00:05]} O-O {[%emt 0:00:20]} 6. O-O {[%emt 0:00:05]} c6 {[%emt 0:00:09]} 7. Qc2 {[%emt 0:00:16]} Nbd7 {[%emt 0:00:59]} 8. Rd1 {[%emt 0:01:55]} b6 {[%emt 0:00:09]} 9. Nc3 {[%emt 0:00:05]} Ba6 {[%emt 0:00:36]} 10. e4 {[%emt 0:00:43]} dxc4 {[%emt 0:01:15]} 11. d5 {[%emt 0:08:07]} exd5 {[%emt 0:18:41]} 12. exd5 {[%emt 0:04:48]} Nc5 {[%emt 0:01:51]} 13. dxc6 {[%emt 0:11:44]} Nd3 {[%emt 0:07:34]} 14. Ne1 {[%emt 0:11:04]} Nxe1 {[%emt 0:24:49]} 15. Rxe1 {[%emt 0:00:39]} b5 {[%emt 0:00:37]} 16. Bg5 {[%emt 0:05:12]} Qd6 {[%emt 0:13:23]} 17. Bf4 {[%emt 0:05:22]} Qc5 {[%emt 0:12:59]} 18. Re5 {[%emt 0:00:11]} Rae8 {[%emt 0:07:06]} 19. Rxc5 {[%emt 0:01:07]} Bxc5 {[%emt 0:00:04]} 20. Ne4 {[%emt 0:01:22]} Nxe4 {[%emt 0:00:48]} 21. Bxe4 {[%emt 0:00:06]} h6 {[%emt 0:00:49]} 22. Rd1 {[%emt 0:01:08]} Re6 {[%emt 0:00:53]} 23. Bd5 {[%emt 0:04:36]} Rf6 {[%emt 0:00:09]} 24. Be5 {[%emt 0:00:47]} Rxf2 {[%emt 0:00:50]} 25. Qxf2 {[%emt 0:00:09]} Bxf2+ {[%emt 0:00:06]} 26. Kxf2 {[%emt 0:00:04]} Re8 {[%emt 0:01:15]} 27. Bc3 {[%emt 0:00:23]} Bc8 {[%emt 0:02:49]} 28. c7 {[%emt 0:00:16]} Kh7 {[%emt 0:03:02]} 29. Bc6 {[%emt 0:00:43]} Re7 {[%emt 0:00:13]} 30. Rd8 {[%emt 0:00:15]} Rxc7 {[%emt 0:00:16]} 31. Be4+ {[%emt 0:00:04]} f5 {[%emt 0:00:24]} 32. Rxc8 {[%emt 0:00:04]} 1-0

[Event "45th FIDE Womens Olympiad 2024"]
[Site "Budapest"]
[Date "2024.09.16"]
[Round "6.22"]
[White "Sisior, Angelil"]
[Black "Almusawi, Maram"]
[Result "1/2-1/2"]
[ECO "B01"]
[WhiteElo "1691"]
[BlackElo "1510"]
[PlyCount "90"]
[EventDate "2024.09.05"]
[EventType "team-tourn"]
[EventCountry "HUN"]
[WhiteTeam "Palau"]
[BlackTeam "Bahrain"]
[WhiteTeamCountry "PAL"]
[BlackTeamCountry "BHN"]
[TimeControl "40/5400+30:1800+30"]

1. e4 d5 2. exd5 Qxd5 3. Nc3 Qa5 4. Bc4 Bf5 5. d4 c6 6. Bf4 Nf6 7. f3 e6 8. Nge2 Be7 9. Qd2 Nbd7 10. O-O-O O-O-O 11. g4 Bg6 12. Qe3 Rhe8 13. a3 Nd5 14. Nxd5 exd5 15. Ba2 Bxa3 16. Qxa3 Qxa3 17. bxa3 Rxe2 18. Bb3 Rde8 19. Rhf1 Nb6 20. Bg3 Nc4 21. Rfe1 Nxa3 22. Rxe2 Rxe2 23. Rd2 Rxd2 24. Kxd2 b5 25. f4 Be4 26. Kc1 a5 27. c3 Kb7 28. f5 Nb1 29. Be1 Na3 30. Kb2 Nc4+ 31. Bxc4 dxc4 32. Bg3 b4 33. cxb4 axb4 34. Bd6 b3 35. Be5 g6 36. f6 Kb6 37. Bd6 Kb5 38. g5 Bd5 39. h4 Kb6 40. Kc3 Kb7 41. Ba3 Kc7 42. Bc1 Kd6 43. Bd2 Ke6 44. Be1 Kf5 45. Kb2 Ke4 1/2-1/2

[Event "45th FIDE Womens Olympiad 2024"]
[Site "Budapest"]
[Date "2024.09.16"]
[Round "6.23"]
[White "Luong, Phuong Hanh"]
[Black "Beydullayeva, Govhar"]
[Result "0-1"]
[ECO "E08"]
[WhiteElo "2225"]
[BlackElo "2395"]
[Annotator "TA"]
[PlyCount "94"]
[EventDate "2024.09.05"]
[EventType "team-tourn"]
[EventCountry "HUN"]
[SourceTitle "playchess.com"]
[Source "ChessBase"]
[SourceQuality "1"]
[WhiteTeam "Vietnam"]
[BlackTeam "Azerbaijan"]
[WhiteTeamCountry "VIE"]
[BlackTeamCountry "AZE"]
[TimeControl "40/5400+30:1800+30"]

{[%evp 17,94,0,17,17,17,22,45,37,37,35,31,44,34,24,46,39,36,11,23,14,9,21,29,25,60,22,37,34,34,29,46,0,8,6,5,-22,-22,-36,-32,-25,-22,-359,-378,-383,-375,-328,-142,-137,-142,-132,-138,-131,-61,-119,-118,-107,-112,-209,-201,-195,-169,-162,-191,-29974,-29976,-29976,-29977,-29977,-29978,-29978,-29979,-29979,-29980,-29980,-29981,-29981,-29981,-29981,-29982]} 1. d4 {[%emt 0:00:03]} Nf6 {[%emt 0:00:08]} 2. c4 {[%emt 0:00:08]} e6 {[%emt 0:00:06]} 3. Nf3 {[%emt 0:00:06]} d5 {[%emt 0:00:23]} 4. g3 {[%emt 0:00:08]} Bb4+ {[%emt 0:00:48]} 5. Bd2 {[%emt 0:00:08]} Be7 {[%emt 0:00:05]} 6. Bg2 {[%emt 0:00:11]} O-O {[%emt 0:00:24]} 7. O-O {[%emt 0:00:06]} Nbd7 {[%emt 0:00:08]} 8. Qc2 {[%emt 0:00:09]} c6 {[%emt 0:00:05]} 9. Bf4 {[%emt 0:00:26]} a5 {[%emt 0:00:53]} 10. Rd1 {[%emt 0:00:58]} a4 {[%emt 0:00:47]} 11. Ne5 {[%emt 0:02:07]} Nxe5 {[%emt 0:01:11]} 12. dxe5 {[%emt 0:00:10] White is slightly better.} Nd7 {[%emt 0:00:05]} 13. cxd5 $1 {[%emt 0:00:24]} exd5 {[%emt 0:00:25]} 14. e4 {[%emt 0:03:42]} Nb6 {[%emt 0:00:50]} 15. exd5 {[%emt 0:01:07]} Nxd5 {[%emt 0:00:39]} 16. Nc3 {[%emt 0:02:53]} Be6 {[%emt 0:02:39]} 17. Nxd5 {[%emt 0:03:32]} cxd5 {[%emt 0:01:52]} 18. Rac1 {[%emt 0:09:15]} a3 $1 {[%emt 0:26:18]} 19. bxa3 {[%emt 0:04:54]} Rxa3 {[%emt 0:00:23]} 20. Be3 {[%emt 0:05:50]} h5 {[%emt 0:13:27]} 21. Qb2 {[%emt 0:05:01]} Qa8 {[%emt 0:06:45][%cal Oa3e3]} 22. Rc7 {[%emt 0:18:52]} (22. Bxd5 Bxd5 23. Rxd5 Rxe3 24. fxe3 Ba3 $17) 22... d4 {[%emt 0:18:57]} 23. Bxd4 {[%emt 0:02:40]} (23. Qxd4 Rd8 24. Qa1 Rxa2 $15) 23... Qa4 {[%emt 0:01:17]} 24. Qc1 {[%emt 0:03:33]} (24. Ra1 $14 {might be stronger.} Rd8 25. Rxe7 (25. Rxb7 $2 Bf8 $19) 25... Rxd4 26. Bxb7) 24... Bg5 {[%emt 0:02:50]} 25. f4 $1 {[%emt 0:04:03]} (25. Qxg5 $2 Qxd1+ 26. Bf1 Qxd4 $19) 25... Rd8 $1 {[%emt 0:01:58]} 26. fxg5 {[%emt 0:03:32]} Rxd4 {[%emt 0:00:03]} 27. Rf1 {[%emt 0:07:04]} Rxa2 {[%emt 0:06:02] Threatens to win with ...Rdd2.} (27... Bxa2 28. Rxb7 Bc4 29. e6 Bxe6 30. g6 fxg6 31. Qc7 $18) 28. g6 $1 {[%emt 0:05:30]} fxg6 $40 {[%emt 0:01:17][%mdl 128] And now ...Rdd2 would win. Black has some attack.} 29. Qg5 {[%emt 0:08:34][%mdl 8192]} (29. Qc5 $1 $11 Qb4 30. Qxb4 Rxb4 31. Re7) 29... Rd7 $1 $19 {[%emt 0:01:42]} ({Inferior is} 29... Rdd2 30. Rf8+ Kh7 31. Rxg7+ Kxg7 32. Qf6+ Kh7 33. Rh8#) 30. Rxd7 {[%emt 0:05:12]} Qxd7 {[%emt 0:00:08]} 31. Qe3 {[%emt 0:02:29] [#]} (31. Qxg6 $2 {perishes.} Rxg2+ 32. Kxg2 Bh3+ 33. Kf3 Qd5+ (33... Bxf1 $2 34. Ke3 $19) 34. Ke2 Qxe5+ (34... Bxf1+ $2 35. Ke1 $19) 35. Kf2 Qc5+ (35... Qd4+ $2 36. Ke2 $19) 36. Kf3 Bxf1 $19) 31... Rxg2+ {[%emt 0:08:20]} 32. Kxg2 {[%emt 0:00:03][%mdl 4096] Endgame. KQR-KQB} Bh3+ {[%emt 0:00:03]} 33. Kg1 {[%emt 0:00:14]} Bxf1 {[%emt 0:00:02]} 34. Kxf1 $17 {[%emt 0:00:09] KQ-KQ} Qd1+ {[%emt 0:01:30]} (34... Kf7 $17 {...Qd1+ is the strong threat.} 35. Qb3+ Ke7 36. Qb4+ Ke6) 35. Kg2 {[%emt 0:00:41] [#]} (35. Kf2 $15) 35... Qd5+ $1 {[%emt 0:00:14]} 36. Kg1 {[%emt 0:00:12]} Kf7 {[%emt 0:00:42]} 37. Qb6 {[%emt 0:01:25]} (37. Qc3 $17) 37... Qd1+ {[%emt 0:01:12]} ({Less strong is} 37... Qxe5 38. Qxb7+ Kg8 39. Qf3 $15) 38. Kg2 {[%emt 0:00:13]} Qc2+ {[%emt 0:00:19]} 39. Kg1 {[%emt 0:00:11]} Qc1+ {[%emt 0:00:26]} 40. Kg2 $2 {[%emt 0:00:05]} (40. Kf2 $19) 40... Qc6+ {[%emt 0:01:48] Black mates.} 41. Qxc6 {[%emt 0:30:08]} bxc6 {[%emt 0:30:00] KP-KP} 42. Kf3 {[%emt 0:00:07]} Ke6 {[%emt 0:00:00]} 43. Ke4 {[%emt 0:00:00]} g5 {[%emt 0:00:00]} 44. Kd4 {[%emt 0:00:00]} g4 {[%emt 0:00:00]} 45. Ke4 {[%emt 0:00:00]} c5 {[%emt 0:00:00]} 46. Kf4 {[%emt 0:00:00]} g6 {[%emt 0:00:00]} 47. Ke4 {[%emt 0:00:00]} g5 {[%emt 0:00:00] Weighted Error Value: White=0.38/Black=0.14 (very precise) .  Loses game:     	White=1     	---        Missed win:     	---       	Black=1      Mistake:       	White=4     	Black=1      Inaccurate:     	White=2     	Black=1      OK:         	White=13    	Black=11     Best:        	White=2     	Black=2      Strong:       	White=3     	Black=4} 0-1

[Event "45th FIDE Womens Olympiad 2024"]
[Site "Budapest"]
[Date "2024.09.16"]
[Round "6.23"]
[White "Sharaf, Hawra"]
[Black "Sisior, Dilyolt Kyarii Parra"]
[Result "0-1"]
[ECO "C26"]
[WhiteElo "1595"]
[BlackElo "1488"]
[PlyCount "78"]
[EventDate "2024.09.05"]
[EventType "team-tourn"]
[EventCountry "HUN"]
[WhiteTeam "Bahrain"]
[BlackTeam "Palau"]
[WhiteTeamCountry "BHN"]
[BlackTeamCountry "PAL"]
[TimeControl "40/5400+30:1800+30"]

1. e4 e5 2. Nc3 b6 3. d3 Bb7 4. Nge2 Nf6 5. g3 Nc6 6. Bg2 Bc5 7. O-O Nd4 8. Be3 d5 9. Bxd4 exd4 10. e5 dxc3 11. exf6 cxb2 12. Rb1 Qxf6 13. d4 Bd6 14. Rxb2 O-O 15. c3 Rab8 16. Nc1 Rfe8 17. Nb3 c6 18. Re2 c5 19. Rxe8+ Rxe8 20. Qg4 g6 21. Qd7 Re7 22. Qg4 Ba6 23. Rc1 Re2 24. Bf3 h5 25. Bxe2 hxg4 26. Bxa6 cxd4 27. cxd4 Kg7 28. Rc6 Qe7 29. Bc8 f5 30. Ba6 Qe1+ 31. Kg2 Bb4 32. Rc7+ Kh6 33. Nc1 Bd6 34. Rc6 f4 35. gxf4 Qe4+ 36. Kf1 Qh1+ 37. Ke2 Bxf4 38. Nd3 Qe4+ 39. Kf1 Qxd4 {0-} 0-1

[Event "45th FIDE Womens Olympiad 2024"]
[Site "Budapest"]
[Date "2024.09.16"]
[Round "6.24"]
[White "Balajayeva, Khanim"]
[Black "Bach, Ngoc Thuy Duong"]
[Result "1/2-1/2"]
[ECO "B51"]
[WhiteElo "2384"]
[BlackElo "2214"]
[Annotator "TA"]
[PlyCount "75"]
[EventDate "2024.09.05"]
[EventType "team-tourn"]
[EventCountry "HUN"]
[SourceTitle "playchess.com"]
[Source "ChessBase"]
[SourceQuality "1"]
[WhiteTeam "Azerbaijan"]
[BlackTeam "Vietnam"]
[WhiteTeamCountry "AZE"]
[BlackTeamCountry "VIE"]
[TimeControl "40/5400+30:1800+30"]

{[%evp 9,75,6,31,20,26,19,36,29,33,29,33,41,37,22,33,39,34,17,36,8,27,26,34,21,21,16,23,26,55,45,35,50,51,31,42,34,45,43,53,38,26,39,61,-26,34,29,69,0,0,0,0,0,0,0,0,0,0,0,0,0,0,0,0,0,0,0,0,0]} 1. e4 {[%emt 0:00:03]} c5 {[%emt 0:00:16]} 2. Nf3 {[%emt 0:00:09]} d6 {[%emt 0:00:17]} 3. Bb5+ {[%emt 0:00:27]} Nd7 {[%emt 0:01:38]} 4. a4 {[%emt 0:00:48]} Ngf6 {[%emt 0:01:06]} 5. Nc3 {[%emt 0:00:17]} g6 {[%emt 0:01:09]} 6. O-O {[%emt 0:01:45]} Bg7 {[%emt 0:00:53]} 7. a5 {[%emt 0:01:07]} a6 {[%emt 0:00:14]} 8. Be2 {[%emt 0:00:26] White is slightly better.} O-O {[%emt 0:00:10]} 9. d3 {[%emt 0:00:44]} b5 {[%emt 0:02:12]} 10. axb6 Nxb6 {[%emt 0:00:07]} 11. Be3 {[%emt 0:04:22]} Bb7 {[%emt 0:04:43]} 12. Qd2 {[%emt 0:00:18]} Qc7 {[%emt 0:00:45]} 13. Bh6 {[%emt 0:08:57]} e5 {[%emt 0:05:16]} 14. h4 {[%emt 0:03:32]} Rfe8 {[%emt 0:08:22]} 15. Bxg7 {[%emt 0:15:51]} Kxg7 {[%emt 0:00:21]} 16. Nh2 {[%emt 0:00:02]} d5 {[%emt 0:19:58]} 17. Nxd5 {[%emt 0:05:03]} Nbxd5 {[%emt 0:00:16]} 18. exd5 {[%emt 0:00:03]} Nxd5 {[%emt 0:09:39][%cal Oc5c4]} 19. Bf3 $1 {[%emt 0:03:41]} Nf4 {[%emt 0:06:21]} 20. Rfe1 {[%emt 0:06:10]} f6 {[%emt 0:05:52]} 21. Qa5 {[%emt 0:04:46]} Qd7 {[%emt 0:04:18]} 22. Qa4 {[%emt 0:05:59]} ({Don't play} 22. Qxc5 Bxf3 (22... Rec8 23. Qe3 $11) 23. Nxf3 Rac8 $15) 22... Qc8 {[%emt 0:02:09]} 23. Bxb7 {[%emt 0:00:00]} Qxb7 {[%emt 0:00:08][%csl Gf4][%cal Rb7g2] [#]} 24. Nf3 {[%emt 0:00:00]} (24. Qe4 {simplifies} Qxe4 25. Rxe4 Ne6 26. Rea4) 24... Reb8 {[%emt 0:05:39][%cal Ob7d5]} 25. b3 {[%emt 0:09:36]} Qc8 {[%emt 0:08:18]} 26. Re4 {[%emt 0:01:34] Wards off Rb4} (26. Qe4 $14 Qd8 27. g3) 26... Qg4 {[%emt 0:06:19]} (26... a5 $1 $11) 27. Ne1 $14 {[%emt 0:00:44]} Rb4 {[%emt 0:02:13]} 28. Rxb4 {[%emt 0:04:04]} (28. Qc6 $14 Rxe4 29. dxe4) 28... cxb4 $11 {[%emt 0:00:08] The position is equal.} 29. Qc6 {[%emt 0:00:54]} Ra7 {[%emt 0:02:44]} 30. Rxa6 {[%emt 0:15:10]} Rxa6 {[%emt 0:00:43]} 31. Qxa6 {[%emt 0:00:04]} Qxh4 {[%emt 0:01:47][%mdl 4096] Endgame. KQN-KQN} 32. Qb7+ {[%emt 0:00:26]} Kh6 {[%emt 0:00:54]} 33. g3 {[%emt 0:01:32]} Qg4 {[%emt 0:00:57]} 34. Qh1+ {[%emt 0:01:04]} Kg7 {[%emt 0:00:11]} 35. Qb7+ {[%emt 0:00:28]} Kh6 {[%emt 0:00:11]} 36. Qh1+ {[%emt 0:00:46]} Kg7 {[%emt 0:00:27]} 37. Qb7+ {[%emt 0:01:58]} Kh6 {[%emt 0:00:39]} 38. Qh1+ {[%emt 0:01:25] Weighted Error Value: White=0.09 (flawless) /Black=0.10 (very precise) .  Mistake:       	White=2     	Black=1      Inaccurate:     	White=1     	Black=2      OK:         	White=13    	Black=9      Best:        	White=1     	Black=3      Strong:       	White=1     	---} 1/2-1/2

[Event "45th FIDE Womens Olympiad 2024"]
[Site "Budapest"]
[Date "2024.09.16"]
[Round "6.24"]
[White "Parrado, Angelica"]
[Black "Yaqoob, Wafa"]
[Result "0-1"]
[ECO "A08"]
[WhiteElo "1741"]
[BlackElo "1438"]
[PlyCount "98"]
[EventDate "2024.09.05"]
[EventType "team-tourn"]
[EventCountry "HUN"]
[WhiteTeam "Palau"]
[BlackTeam "Bahrain"]
[WhiteTeamCountry "PAL"]
[BlackTeamCountry "BHN"]
[TimeControl "40/5400+30:1800+30"]

1. Nf3 Nf6 2. d3 d5 3. g3 c5 4. Bg2 Nc6 5. b3 Bf5 6. Bb2 e6 7. Nbd2 Be7 8. c3 h6 9. O-O O-O 10. Re1 Re8 11. Nh4 Bh7 12. a3 Qb6 13. Qc2 Rac8 14. Rab1 Qc7 15. Nhf3 b5 16. e4 c4 17. Nd4 Nxd4 18. cxd4 c3 19. Ba1 cxd2 20. Qxd2 Bxa3 21. e5 Nd7 22. Bb2 Bxb2 23. Rxb2 Qc3 24. Qxc3 Rc7 25. Qc4 Rxc4 26. Bf1 Rc3 27. Kg2 Rec8 28. Reb1 Bxd3 29. Ra1 Bxf1+ 30. Rxf1 Rd3 31. Ra1 Rc7 32. Ra6 Rxd4 33. f4 Nc5 34. Rd6 Rd3 35. b4 Na4 36. Rf2 Rb3 37. Kh3 Rxb4 38. f5 Re7 39. f6 gxf6 40. exf6 Rc7 41. Rd8+ Kh7 42. Re8 Nc5 43. Re7 Rd7 44. Ra2 d4 45. Rxa7 Rxa7 46. Rxa7 Kg6 47. g4 d3 48. Rc7 d2 49. Rxc5 d1=Q {0-} 0-1